fUSD/lending_fUSD_20260214
["ID","MTS","AMOUNT","RATE_DAILY","PERIOD"]
[405350509,1771047038071,-1000.0,0.00019997,2]
[405350510,1771047038081,-500.14113314,0.0002,2]
[405350511,1771047038091,-151.11494194,0.0002,2]
[405350512,1771047038100,-510.17977816,0.0002,2]
[405350513,1771047038110,-500.0,0.0002,2]
[405350514,1771047038120,-165.15536308,0.0002,2]
[405350515,1771047038130,-504.9662407,0.0002,2]
[405350516,1771047038139,-500.0,0.0002,2]
[405350517,1771047038149,-500.0,0.0002,2]
[405350518,1771047038158,-500.0,0.0002,2]
[405350519,1771047038168,-602.36130291,0.0002,2]
[405350520,1771047038178,-500.0,0.0002,2]
[405350521,1771047038188,-209.313539,0.0002,2]
[405350522,1771047038197,-504.05893291,0.0002,2]
[405350523,1771047038208,-1535.99592116,0.0002,2]
[405350524,1771047038217,-176.8188652,0.0002,2]
[405350525,1771047038227,-4876.72866373,0.0002,2]
[405350526,1771047038238,-4800.76501154,0.0002,2]
[405350527,1771047038248,-2000.0,0.0002,2]
[405350528,1771047038258,-200.0,0.0002,2]
[405350529,1771047038268,-420.0,0.0002002,2]
[405350530,1771047038279,-152.0,0.00020041,9]
[405350531,1771047038290,-792.77,0.00020104,2]
[405350532,1771047038299,-151.0,0.000202,2]
[405350533,1771047038309,-11616.7285959,0.00020215,2]
[405350534,1771047038319,-7214.8855032,0.00020227,2]
[405350535,1771047038330,-152.0,0.00020251,10]
[405350536,1771047038340,-1200.0,0.00020274,7]
[405350537,1771047038350,-1000.0,0.00020345,2]
[405350538,1771047038365,-620.0,0.00020363,10]
[405350539,1771047038375,-152.0,0.0002046,11]
[405350540,1771047038385,-597.2542702,0.00020538,2]
[405350541,1771047038395,-501.53653248,0.00020548,2]
[405350542,1771047038404,-1002.9332908,0.00020548,2]
[405350543,1771047038414,-587.60910963,0.00020548,2]
[405350544,1771047038423,-435.60021085,0.00020548,2]
[405350545,1771047038435,-1012.32638927,0.00020548,2]
[405350546,1771047038445,-500.0,0.00020548,7]
[405350547,1771047038455,-500.0,0.00020548,7]
[405350548,1771047038464,-480.8345258,0.00020552,2]
[405350549,1771047038474,-413.29,0.00020568,2]
[405350550,1771047038484,-430.95716487,0.00020582,2]
[405350551,1771047038494,-166.66,0.00020626,2]
[405350552,1771047038504,-152.0,0.00020669,12]
[405350553,1771047038514,-487.0,0.00020769,2]
[405350554,1771047038524,-487.0,0.00020769,2]
[405350555,1771047038533,-487.0,0.00020769,2]
[405350556,1771047038543,-487.0,0.00020769,2]
[405350557,1771047038553,-487.0,0.00020769,2]
[405350558,1771047038563,-487.0,0.00020769,2]
[405350559,1771047038572,-487.0,0.00020769,2]
[405350560,1771047038582,-487.0,0.00020769,2]
[405350561,1771047038592,-487.0,0.00020769,2]
[405350562,1771047038602,-487.0,0.00020769,2]
[405350563,1771047038612,-487.0,0.00020769,2]
[405350564,1771047038622,-487.0,0.00020769,2]
[405350565,1771047038632,-487.0,0.00020769,2]
[405350566,1771047038642,-487.0,0.00020769,2]
[405350567,1771047038651,-806.41,0.00020769,2]
[405350568,1771047038661,-175.6715657,0.00020842,6]
[405350569,1771047038671,-152.0,0.00020878,13]
[405350570,1771047038680,-3952.0,0.000209,2]
[405350571,1771047038690,-490.95499564,0.000209,30]
[405350572,1771047038700,-222.62,0.00020919,2]
[405350573,1771047038710,-32141.0329682,0.00021,2]
[405350574,1771047038720,-379.46,0.00021,2]
[405350575,1771047038730,-12546.97,0.00021068,2]
[405350576,1771047038740,-152.0,0.00021088,14]
[405350577,1771047038750,-152.0,0.00021297,15]
[405350578,1771047038760,-1200.0,0.0002137,7]
[405350579,1771047038771,-166.66,0.00021383,2]
[405350580,1771047038781,-152.0,0.00021506,16]
[405350581,1771047038791,-490.0,0.0002154,2]
[405350582,1771047038800,-155.0,0.00021598,2]
[405350583,1771047038810,-152.0,0.00021716,17]
[405350584,1771047038820,-587.0,0.00021836,2]
[405350585,1771047038829,-222.62,0.0002187,2]
[405350586,1771047038839,-4871.31518124,0.000219,2]
[405350587,1771047038848,-3694.39551726,0.000219,2]
[405350588,1771047038858,-293.0,0.00021913,2]
[405350589,1771047038868,-5000.0,0.00021918,2]
[405350590,1771047038878,-152.0,0.00021925,18]
[405350591,1771047038888,-500.0,0.00021999,2]
[405350592,1771047038898,-2005.16637976,0.00022,2]
[405350593,1771047038908,-2585.92829991,0.00022,4]
[405350594,1771047038936,-2169.57612308,0.00022,4]
[405350595,1771047038955,-3379.8,0.00022,4]
[405350596,1771047039640,-665.0,0.0002046,10]
[405350597,1771047039650,-2365.275,0.00022,4]
[405350598,1771047039662,-2511.0,0.00022,4]
[405350599,1771047039673,-3295.39,0.00022,4]
[405350600,1771047039709,3350.829,0.00017757,2]
[405350604,1771047043154,-1082.28211753,0.00022,4]
[405350607,1771047045799,-1999.05639574,0.00022,4]
[405350608,1771047045812,-503.37952,0.00022,4]
[405350610,1771047049368,1288.0,0.00017757,2]
[405350612,1771047075035,503.00752833,8.915e-05,2]
[405350613,1771047088318,151.0,0.00014634,2]
[405350614,1771047088451,606.55537028,8.915e-05,2]
[405350615,1771047127160,500.5312158,8.915e-05,2]
[405350616,1771047130331,1000.0,0.00016464,2]
[405350617,1771047130925,1000.0,0.00017012,2]
[405350618,1771047132027,627.1911022,8.915e-05,2]
[405350619,1771047132066,1000.0,0.00016738,2]
[405350620,1771047132765,502.07246657,8.915e-05,2]
[405350621,1771047134009,502.39848837,8.915e-05,2]
[405350622,1771047135076,500.0,8.915e-05,2]
[405350623,1771047135142,652.51869593,9.463e-05,2]
[405350624,1771047136887,500.0,8.915e-05,2]
[405350625,1771047136922,2158.30965719,0.00012202,2]
[405350626,1771047136950,1500.0,0.00010011,2]
[405350627,1771047136992,1000.0,9.463e-05,2]
[405350628,1771047137067,2000.0,0.00010559,2]
[405350629,1771047137098,3000.0,0.00011654,2]
[405350630,1771047137164,2500.0,0.00011106,2]
[405350631,1771047239480,1000.0,0.0001797,2]
[405350632,1771047239517,500.0,0.0001797,2]
[405350633,1771047239578,1000.0,0.0001797,2]
[405350634,1771047239613,500.0,0.0001797,2]
[405350635,1771047239675,1000.0,0.0001797,2]
[405350636,1771047239727,500.0,0.0001797,2]
[405350637,1771047239783,1000.0,0.0001797,2]
[405350638,1771047239824,500.0,0.0001797,2]
[405350639,1771047239917,1833.76947021,0.0001797,2]
[405350640,1771047240183,634.54391521,0.0001797,2]
[405350641,1771047334502,250.0,0.00015,2]
[405350642,1771047380053,505.09875296,8.915e-05,2]
[405350643,1771047386987,500.0,8.915e-05,2]
[405350644,1771047387024,1007.05430683,9.463e-05,2]
[405350645,1771047592006,1584.69,0.00016577,2]
[405350646,1771047606768,500.0,8.915e-05,2]
[405350647,1771047606821,1000.0,9.463e-05,2]
[405350648,1771047606883,1500.0,0.00010011,2]
[405350649,1771047606933,481.61075426,0.00010559,2]
[405350650,1771047688850,730.69146005,0.00017969,2]
[405350651,1771047695733,1499.902,0.00017701,2]
[405350652,1771047704014,245.9370819,0.00017969,3]
[405350653,1771047724251,1320.01021958,0.00017969,2]
[405350654,1771047725671,1581.00973994,0.00017969,2]
[405350655,1771047744902,4299.81321469,0.00017969,2]
[405350656,1771047767620,608.90955005,0.00017969,2]
[405350657,1771047775098,5681.8765089,0.00017969,2]
[405350658,1771047788147,181.78569782,0.00017969,2]
[405350659,1771047810658,3267.74142225,0.00017965,2]
[405350660,1771047833541,1998.90736966,0.00017965,2]
[405350661,1771047843707,163.9580546,0.00017965,3]
[405350662,1771047846232,507.424625,0.00017965,2]
[405350663,1771047854476,880.00681306,0.00017965,2]
[405350664,1771047855972,1054.0064933,0.00017965,2]
[405350665,1771047886134,292.58727884,0.00017965,2]
[405350666,1771047895278,3787.9176726,0.00017965,2]
[405350667,1771047918357,181.7856978,0.00017965,2]
[405350668,1771047923927,422.8538542,0.00017965,2]
[405350669,1771047926639,709.47853999,0.00017965,2]
[405350670,1771047970557,501.52263997,8.915e-05,2]
[405350671,1771047984749,586.6712087,0.00017965,2]
[405350672,1771048004133,-166.0432938,0.0001806,2]
[405350673,1771048005797,199.995,0.0002,120]
[405350674,1771048006361,301.105068,0.0002,120]
[405350675,1771048028415,2500.0,0.00017962,2]
[405350676,1771048066980,200.0,0.0002,120]
[405350677,1771048067943,152.07,0.00013346,2]
[405350678,1771048068138,152.07,0.000143,2]
[405350679,1771048068340,152.07,0.00015253,2]
[405350680,1771048068519,152.07,0.00016206,2]
[405350681,1771048068740,152.07,0.00017159,2]
[405350682,1771048086036,166.11,0.00016712,2]
[405350683,1771048135922,620415.23199763,0.00017961,2]
[405350684,1771048135945,1000000.0,0.00017961,2]
[405350685,1771048135969,1000000.0,0.00017961,2]
[405350686,1771048135996,624835.90610237,0.00017961,2]
[405350690,1771048235290,-160.0,0.0001806,2]
[405350691,1771048235299,-1200.0,0.0001806,2]
[405350692,1771048235308,-250.0,0.00018061,2]
[405350693,1771048235318,-500.0,0.00018061,2]
[405350694,1771048235327,-500.0,0.00018061,2]
[405350695,1771048235509,-500.0,0.00018061,2]
[405350696,1771048235518,-533.47525124,0.00018061,2]
[405350697,1771048235528,-531.53031667,0.00018061,2]
[405350698,1771048235537,-515.83029369,0.00018061,2]
[405350699,1771048235547,-500.0,0.00018061,2]
[405350700,1771048235556,-500.0,0.00018061,2]
[405350701,1771048235566,-500.0,0.00018061,2]
[405350702,1771048235575,-169.67529011,0.00018061,2]
[405350703,1771048235584,-505.79549439,0.00018061,2]
[405350704,1771048235594,-3489.0,0.0001807,2]
[405350705,1771048235603,-1288.0,0.0001807,2]
[405350706,1771048235612,-1273.0,0.0001807,2]
[405350707,1771048235622,-150.0,0.0001807,2]
[405350708,1771048235631,-152.07,0.00018113,2]
[405350709,1771048235640,-303.20355862,0.00018261,2]
[405350710,1771048235650,-517.612946,0.00018261,2]
[405350711,1771048235660,-511.31646634,0.00018261,2]
[405350712,1771048235669,-500.0,0.00018261,2]
[405350713,1771048235679,-579.14918619,0.00018261,2]
[405350714,1771048235688,-500.0,0.00018261,2]
[405350715,1771048235698,-500.0,0.00018261,2]
[405350716,1771048235707,-500.0,0.00018261,2]
[405350717,1771048235716,-382.66523027,0.00018261,2]
[405350718,1771048235725,-307.82654637,0.00018558,2]
[405350719,1771048235734,-306.28,0.00018558,2]
[405350720,1771048235743,-150.99,0.00018558,2]
[405350721,1771048235754,-5613.7,0.00018558,2]
[405350722,1771048235764,-9999.99,0.00018558,2]
[405350723,1771048235776,-150.99,0.00018558,2]
[405350724,1771048235785,-999.99,0.00018558,2]
[405350725,1771048235794,-4633.56,0.00018558,2]
[405350726,1771048235803,-25509.03861399,0.00018804,2]
[405350727,1771048235816,-444.74866762,0.00018804,2]
[405350733,1771048237658,-1034.33142762,0.00018804,2]
[405350734,1771048237715,-1323.83799908,0.00018804,2]
[405350735,1771048237776,-947.64494553,0.00018804,2]
[405350737,1771048239808,-2409.8152665,0.00018804,2]
[405350748,1771048244540,-1005.17,0.0001807,2]
[405350749,1771048245622,-1444.83,0.0001807,2]
[405350750,1771048245632,-3745.89,0.00018804,2]
[405350767,1771048257710,760.39041521,0.00018,2]
[405350768,1771048336046,545.11062906,0.00017,30]
[405350769,1771048347096,500.0,0.00017,30]
[405350770,1771048347582,529.25942534,0.00015,30]
[405350771,1771048645133,532.0,0.00022,120]
[405350772,1771048877972,150.0,0.00018,2]
[405350777,1771048944095,500.0,0.00017,30]
[405350778,1771049136759,250.0,0.00015,2]
[405350784,1771049431760,-300.0,0.0001806,2]
[405350785,1771049431770,-300.0,0.0001806,2]
[405350786,1771049431779,-21.18661666,0.0001806,2]
[405350787,1771049431790,-705.89360131,0.0001806,2]
[405350788,1771049431818,-263.36265892,0.0001806,2]
[405350789,1771049431876,-209.55712311,0.0001806,2]
[405350790,1771049431886,-351.68909586,0.00018061,2]
[405350791,1771049431895,-506.49715153,0.00018061,2]
[405350792,1771049431905,-500.0,0.00018061,2]
[405350793,1771049431914,-518.57607034,0.00018061,2]
[405350794,1771049431923,-1288.0,0.0001807,2]
[405350795,1771049431933,-3487.0,0.0001807,2]
[405350796,1771049431942,-166.66,0.00018247,2]
[405350797,1771049431951,-1000.0,0.00018289,2]
[405350798,1771049431961,-475.66,0.00018306,2]
[405350799,1771049431970,-528.91765252,0.00018463,2]
[405350806,1771049438025,-991.14667184,0.00018463,2]
[405350813,1771049445916,-503.37952,0.00018463,2]
[405350815,1771049543881,500.0,0.00017,30]
[405350817,1771049834138,1025.75113224,0.00017961,2]
[405350818,1771049834170,1443.49183394,0.00017961,2]
[405350819,1771049834343,1275.56756393,0.00017961,2]
[405350820,1771049834405,3859.98001594,0.00017961,2]
[405350822,1771049977202,-475.66,0.00025171,120]
[405350826,1771050132243,30322.16,0.00017683,2]
[405350827,1771050144627,455.1,0.00017911,2]
[405350828,1771050160417,500.0,0.000177,2]
[405350831,1771050308105,335121.65293637,0.00018,2]
[405350832,1771050310080,511.61670591,8.915e-05,2]
[405350833,1771050338713,200.0,0.00017374,2]
[405350834,1771050343000,200.0,0.00017374,2]
[405350836,1771050389520,1371.498,0.0001777,2]
[405350849,1771050632095,-300.0,0.00017899,2]
[405350850,1771050632104,-627.69623708,0.00017899,2]
[405350851,1771050632118,-572.30376292,0.00017899,2]
[405350852,1771050632128,-150.0,0.00017899,2]
[405350853,1771050632137,-300.0,0.00017899,2]
[405350854,1771050632147,-657.87780022,0.000179,2]
[405350856,1771050632160,-3936.57609548,0.000179,2]
[405350858,1771050632170,-793.13551736,0.000179,2]
[405350860,1771050632179,-776.07172283,0.000179,2]
[405350862,1771050632189,-352.3782118,0.000179,2]
[405350864,1771050632200,-227.08849029,0.000179,3]
[405350866,1771050632210,-181.7856978,0.000179,2]
[405350868,1771050632219,-444.42918012,0.000179,2]
[405350870,1771050632231,-417.2,0.00017911,2]
[405350872,1771050632241,-352.3782118,0.00017916,2]
[405350873,1771050632250,-250.0,0.00017926,2]
[405350874,1771050632260,-352.3782118,0.00017932,2]
[405350875,1771050632270,-4209.25464803,0.00017941,2]
[405350876,1771050632281,-6402.17850694,0.00017941,2]
[405350878,1771050632290,-392.22863956,0.00017941,2]
[405350880,1771050632300,-3969.78733875,0.00017941,2]
[405350882,1771050632309,-352.3782118,0.00017948,2]
[405350884,1771050632318,-151.0,0.00017956,2]
[405350886,1771050632327,-151.0,0.00017956,2]
[405350888,1771050632336,-151.0,0.00017956,2]
[405350890,1771050632346,-209.428383,0.00017956,2]
[405350892,1771050632356,-10611.43315489,0.00017956,2]
[405350894,1771050632365,-3969.78733866,0.00017956,2]
[405350896,1771050632375,-206.761941,0.00017963,2]
[405350898,1771050632384,-206.761941,0.00017963,2]
[405350900,1771050632393,-206.761941,0.00017963,2]
[405350902,1771050632403,-206.761941,0.00017963,2]
[405350904,1771050632413,-151.0,0.00017963,2]
[405350906,1771050632423,-151.0,0.00017963,2]
[405350908,1771050632433,-151.0,0.00017963,2]
[405350910,1771050632442,-352.3782118,0.00017964,2]
[405350912,1771050632451,-151.0,0.0001797,2]
[405350914,1771050632461,-151.0,0.0001797,2]
[405350916,1771050632470,-151.0,0.0001797,2]
[405350918,1771050632480,-151.0,0.0001797,2]
[405350920,1771050632489,-151.0,0.0001797,2]
[405350922,1771050632498,-151.0,0.0001797,2]
[405350924,1771050632507,-10611.43315489,0.00017972,2]
[405350926,1771050632517,-3969.78733866,0.00017972,2]
[405350928,1771050632527,-206.761941,0.00017972,2]
[405350930,1771050632536,-206.761941,0.00017972,2]
[405350932,1771050632546,-206.761941,0.00017972,2]
[405350934,1771050632556,-206.761941,0.00017972,2]
[405350936,1771050632566,-151.0,0.00017972,2]
[405350938,1771050632575,-151.0,0.00017972,2]
[405350940,1771050632585,-292.946264,0.00017972,2]
[405350942,1771050632594,-151.0,0.00017978,2]
[405350944,1771050632602,-151.0,0.00017978,2]
[405350946,1771050632614,-151.0,0.00017978,2]
[405350948,1771050632623,-151.0,0.00017978,2]
[405350950,1771050632632,-151.0,0.00017978,2]
[405350952,1771050632642,-151.0,0.00017978,2]
[405350954,1771050632652,-352.3782118,0.0001798,2]
[405350956,1771050632662,-206.761941,0.00017985,2]
[405350958,1771050632671,-206.761941,0.00017985,2]
[405350960,1771050632680,-206.761941,0.00017985,2]
[405350962,1771050632689,-206.761941,0.00017985,2]
[405350964,1771050632698,-151.0,0.00017985,2]
[405350965,1771050632707,-151.0,0.00017985,2]
[405350967,1771050632717,-151.0,0.00017987,2]
[405350970,1771050632726,-151.0,0.00017987,2]
[405350971,1771050632736,-151.0,0.00017987,2]
[405350973,1771050632746,-151.0,0.00017987,2]
[405350976,1771050632755,-151.0,0.00017987,2]
[405350977,1771050632765,-151.0,0.00017987,2]
[405350979,1771050632775,-10611.43315489,0.00017987,2]
[405350981,1771050632784,-1103.05172494,0.00017987,2]
[405350984,1771050632800,-740.22357805,0.00017987,2]
[405350986,1771050632811,-474.202935,0.00017987,2]
[405350988,1771050632822,-820.54991355,0.00017987,2]
[405350990,1771050632833,-831.75918712,0.00017987,2]
[405350992,1771050632842,-201.08974632,0.0001799,2]
[405350993,1771050632851,-206.761941,0.00017992,2]
[405350995,1771050632861,-206.761941,0.00017992,2]
[405350996,1771050632870,-160.35445614,0.00017992,2]
[405350997,1771050632882,-46.40748486,0.00017992,2]
[405350998,1771050632891,-206.761941,0.00017992,2]
[405350999,1771050632900,-151.0,0.00017992,2]
[405351000,1771050632910,-151.0,0.00017992,2]
[405351001,1771050632919,-500.0,0.00017999,2]
[405351002,1771050632928,-206.761941,0.00017999,2]
[405351003,1771050632937,-206.761941,0.00017999,2]
[405351004,1771050632947,-206.761941,0.00017999,2]
[405351005,1771050632956,-206.76195026,0.00017999,2]
[405351006,1771050632966,-151.0,0.00017999,2]
[405351007,1771050632975,-151.0,0.00017999,2]
[405351008,1771050632985,-151.0,0.00017999,2]
[405351009,1771050632995,-151.0,0.00017999,2]
[405351010,1771050633004,-151.0,0.00017999,2]
[405351011,1771050633014,-500.0,0.00017999,2]
[405351012,1771050633023,-486.10578083,0.00017999,2]
[405351013,1771050633036,-28.13145258,0.00017999,2]
[405351014,1771050633045,-151.0,0.00017999,2]
[405351015,1771050633055,-151.0,0.00017999,2]
[405351016,1771050633064,-151.0,0.00017999,2]
[405351017,1771050633074,-151.0,0.00017999,2]
[405351018,1771050633084,-151.0,0.00017999,2]
[405351019,1771050633093,-216.021567,0.00017999,2]
[405351020,1771050633104,-500.0,0.00017999,2]
[405351021,1771050633114,-499.35440527,0.00017999,2]
[405351022,1771050633126,-0.64559473,0.00017999,2]
[405351023,1771050633136,-156.24150373,0.00017999,2]
[405351024,1771050633146,-304.71149323,0.00017999,2]
[405351025,1771050633159,-500.0,0.00017999,2]
[405351026,1771050633170,-500.0,0.00017999,2]
[405351027,1771050633180,-500.0,0.00017999,2]
[405351028,1771050633189,-500.0,0.00017999,2]
[405351029,1771050633201,-500.0,0.00017999,2]
[405351030,1771050633211,-500.0,0.00017999,2]
[405351031,1771050633220,-500.0,0.00017999,2]
[405351032,1771050633231,-197.02867727,0.00017999,2]
[405351033,1771050633243,-302.97132273,0.00017999,2]
[405351034,1771050633252,-445.03834282,0.00017999,2]
[405351035,1771050634748,-54.96165718,0.00017999,2]
[405351036,1771050634758,-500.0,0.00017999,2]
[405351037,1771050634767,-500.0,0.00017999,2]
[405351038,1771050634777,-500.0,0.00017999,2]
[405351039,1771050634787,-500.0,0.00017999,2]
[405351040,1771050634796,-500.0,0.00017999,2]
[405351041,1771050634805,-390.41890678,0.00017999,2]
[405351042,1771050634814,-600.0,0.00017999,2]
[405351043,1771050634824,-500.0,0.00017999,2]
[405351044,1771050634833,-383.2168494,0.00017999,2]
[405351045,1771050634842,-405.18224969,0.00017999,2]
[405351046,1771050634851,-509.873989,0.00017999,2]
[405351047,1771050634860,-500.0,0.00017999,2]
[405351048,1771050634869,-500.0,0.00017999,2]
[405351049,1771050634878,-500.0,0.00017999,2]
[405351050,1771050634888,-648.76135356,0.00017999,2]
[405351051,1771050634897,-500.0,0.00017999,2]
[405351052,1771050634907,-500.0,0.00017999,2]
[405351053,1771050634916,-222.53846092,0.00017999,2]
[405351054,1771050634926,-500.0,0.00017999,2]
[405351055,1771050634935,-234.45581594,0.00017999,2]
[405351056,1771050634945,-500.0,0.00017999,2]
[405351057,1771050634954,-500.0,0.00017999,2]
[405351058,1771050634964,-500.0,0.00017999,2]
[405351059,1771050634973,-500.0,0.00017999,2]
[405351060,1771050634984,-500.0,0.00017999,2]
[405351061,1771050634993,-500.0,0.00017999,2]
[405351062,1771050635003,-500.0,0.00017999,2]
[405351063,1771050635012,-500.0,0.00017999,2]
[405351064,1771050635021,-500.0,0.00017999,2]
[405351065,1771050635031,-500.0,0.00017999,2]
[405351066,1771050635041,-201.07003677,0.00017999,2]
[405351067,1771050635050,-500.0,0.00017999,2]
[405351068,1771050635059,-500.0,0.00017999,2]
[405351069,1771050635068,-607.3992718,0.00017999,2]
[405351070,1771050635077,-500.0,0.00017999,2]
[405351071,1771050635087,-500.0,0.00017999,2]
[405351072,1771050635096,-500.0,0.00017999,2]
[405351073,1771050635106,-500.0,0.00017999,2]
[405351074,1771050635116,-500.0,0.00017999,2]
[405351075,1771050635125,-500.0,0.00017999,2]
[405351076,1771050635135,-500.0,0.00017999,2]
[405351077,1771050635145,-500.0,0.00017999,2]
[405351078,1771050635157,-500.0,0.00017999,2]
[405351079,1771050635167,-500.0,0.00017999,2]
[405351080,1771050635177,-500.0,0.00017999,2]
[405351081,1771050635186,-500.0,0.00017999,2]
[405351082,1771050635196,-500.0,0.00017999,2]
[405351083,1771050635206,-500.0,0.00017999,2]
[405351084,1771050635215,-500.0,0.00017999,2]
[405351085,1771050635226,-500.0,0.00017999,2]
[405351086,1771050635236,-500.0,0.00017999,2]
[405351087,1771050635245,-500.0,0.00017999,2]
[405351088,1771050635255,-500.0,0.00017999,2]
[405351089,1771050635264,-500.0,0.00017999,2]
[405351090,1771050635275,-500.0,0.00017999,2]
[405351091,1771050635286,-500.0,0.00017999,2]
[405351092,1771050635295,-500.0,0.00017999,2]
[405351093,1771050635304,-561.91202391,0.00017999,2]
[405351094,1771050635314,-556.70857437,0.00017999,2]
[405351095,1771050635323,-556.70857437,0.00017999,2]
[405351096,1771050635333,-556.70857437,0.00017999,2]
[405351097,1771050635342,-556.70857437,0.00017999,2]
[405351098,1771050635351,-556.70857437,0.00017999,2]
[405351099,1771050635361,-556.70857437,0.00017999,2]
[405351100,1771050635371,-556.70857437,0.00017999,2]
[405351101,1771050635381,-556.70857437,0.00017999,2]
[405351102,1771050635391,-556.70857437,0.00017999,2]
[405351103,1771050635401,-556.70857437,0.00017999,2]
[405351104,1771050635411,-556.70857437,0.00017999,2]
[405351105,1771050635420,-556.70857437,0.00017999,2]
[405351106,1771050635429,-556.70857437,0.00017999,2]
[405351107,1771050635438,-500.0,0.00017999,2]
[405351108,1771050635448,-600.0,0.00017999,2]
[405351109,1771050635457,-500.0,0.00017999,2]
[405351110,1771050635467,-500.0,0.00017999,2]
[405351111,1771050635476,-500.0,0.00017999,2]
[405351112,1771050635486,-500.0,0.00017999,2]
[405351113,1771050635495,-500.0,0.00017999,2]
[405351114,1771050635504,-598.6393904,0.00017999,2]
[405351115,1771050635514,-598.6393904,0.00017999,2]
[405351116,1771050635523,-598.6393904,0.00017999,2]
[405351117,1771050635533,-598.6393904,0.00017999,2]
[405351118,1771050635542,-598.6393904,0.00017999,2]
[405351119,1771050635552,-6856.26141927,0.00018,2]
[405351120,1771050635562,-2286436.63554866,0.00018,2]
[405351121,1771050635571,-545073.10614984,0.00018,2]
[405351122,1771050635580,-1027.90406498,0.00018,2]
[405351123,1771050635590,-10611.43315489,0.00018003,2]
[405351124,1771050635600,-3969.78733866,0.00018003,2]
[405351125,1771050635609,-6856.26141927,0.00018007,2]
[405351126,1771050635619,-6856.26141927,0.00018014,2]
[405351127,1771050635628,-10611.43315489,0.00018018,2]
[405351128,1771050635638,-3969.78733866,0.00018018,2]
[405351129,1771050635647,-6856.26141927,0.00018021,2]
[405351130,1771050635657,-6856.26141927,0.00018029,2]
[405351131,1771050635666,-10611.43315489,0.00018034,2]
[405351132,1771050635676,-3969.78733866,0.00018034,2]
[405351133,1771050635685,-6856.26141927,0.00018036,2]
[405351134,1771050635695,-6856.26141927,0.00018043,2]
[405351135,1771050635704,-10611.43315489,0.00018049,2]
[405351136,1771050635714,-3969.78733866,0.00018049,2]
[405351137,1771050635723,-6856.26141927,0.00018051,2]
[405351138,1771050635732,-6856.26141927,0.00018058,2]
[405351139,1771050635742,-10611.43315489,0.00018065,2]
[405351140,1771050635751,-3969.78733866,0.00018065,2]
[405351141,1771050635760,-6856.26141927,0.00018065,2]
[405351142,1771050635770,-6856.26141927,0.00018073,2]
[405351143,1771050635779,-2500.0,0.0001808,2]
[405351144,1771050635788,-10611.43315489,0.0001808,2]
[405351145,1771050635798,-3969.78733866,0.0001808,2]
[405351146,1771050635807,-6856.26141927,0.0001808,2]
[405351147,1771050635816,-1267582.40999703,0.0001808,2]
[405351148,1771050635829,-612.89013257,0.0001808,2]
[405351149,1771050635841,-17739.0871401,0.0001808,2]
[405351150,1771050635852,-12979.42691393,0.0001808,2]
[405351151,1771050635863,-5702.68111979,0.0001808,2]
[405351152,1771050635878,-265.84703492,0.0001808,2]
[405351161,1771050638001,-262.82636412,0.0001808,2]
[405351162,1771050638012,-6548.09848506,0.0001808,2]
[405351163,1771050638128,-1399.84193708,0.0001808,2]
[405351164,1771050638139,-8833.54281752,0.0001808,2]
[405351165,1771050638151,-1023.66848847,0.0001808,2]
[405351166,1771050638177,-636.88586202,0.0001808,2]
[405351335,1771050640147,-45900.65683821,0.0001808,2]
[405351347,1771050640269,-982.66857913,0.0001808,2]